Cogmind - Beta 14 @@@ ROGUE MODE // 2024.09.06 @ 22:26:11 Player: Lunace Result: Destroyed by PJ-SB8(R) with Subdweller Shrapnel Launcher Performance ------------- Evolutions (0) 0 Regions Visited (2) 400 Robots Destroyed (21) 105 Value Destroyed (445) 445 Prototype IDs (2) 40 Alien Tech Used (0) 0 Bonus (0) 0 TOTAL SCORE: 990 Bonus ------- None Cogmind --------- Core Integrity 0/250 Matter 257/300 Energy 241/250 System Corruption 0% Temperature Cool (0) Movement Rolling (110) Location -10/Subcaves Parts ------- > --- POWER (1) -------- Ion Engine > --- PROPULSION (2) --- Subdweller Monowheel > --- UTILITY (2) ------ Small Storage Unit Structural Scanner > --- WEAPON (2) ------- Improved Light Cannon Improved Light Cannon > --- INVENTORY (8) ---- Humpback Makeshift Light Armor Plating Grenade Launcher Subdweller Shrapnel Launcher Makeshift Hammer Peak State ------------ > --- POWER ------------ Ion Engine > --- PROPULSION ------- Subdweller Monowheel > --- UTILITY ---------- Small Storage Unit Structural Scanner > --- WEAPON ----------- Improved Light Cannon Makeshift Hammer > --- INVENTORY -------- Humpback Makeshift Light Armor Plating Improved Light Cannon Improved Light Cannon Grenade Launcher Subdweller Shrapnel Launcher [Rating: 12] Favorites ----------- Power Ion Engine Engine Ion Engine Propulsion Light Treads Treads Light Treads Wheel Subdweller Monowheel Utility Small Storage Unit Device Structural Scanner Storage Small Storage Unit Processor Machine Analyzer Protection Light Armor Plating Weapon Improved Light Cannon Energy Gun EM Pulse Gun Ballistic Gun Assault Rifle Ballistic Cannon Improved Light Cannon Impact Weapon Makeshift Hammer Build | -11 -10 -10 ------- Run | Yrd Mat Sub Slots Evolved . | . . . Power . | . . . Propulsion . | . . . Utility . | . . . Weapon . | . . . Parts Attached 36 | 7 14 15 Power 4 | 1 2 1 Engine 4 | 1 2 1 Core . | . . . Reactor . | . . . Propulsion 4 | 2 1 1 Treads 3 | 2 1 . Leg . | . . . Wheel 1 | . . 1 Hover . | . . . Flight . | . . . Utility 12 | 2 3 7 Device 5 | 1 . 4 Storage 1 | 1 . . Processor 1 | . 1 . Hackware . | . . . Protection 5 | . 2 3 Artifact . | . . . Weapon 16 | 2 8 6 Energy Gun 6 | 1 5 . Energy Cannon . | . . . Ballistic Gun 2 | 1 1 . Ballistic Cannon 6 | . 2 4 Launcher . | . . . Special Weapon . | . . . Impact Weapon 2 | . . 2 Slashing Weapon . | . . . Piercing Weapon . | . . . Special Melee Weapon . | . . . Unidentified Prototypes . | . . . Parts Lost 6 | . . 6 Power 1 | . . 1 Propulsion 2 | . . 2 Utility 1 | . . 1 Weapon 2 | . . 2 Highest Loss Streak 3 | . . 3 To Critical Strikes . | . . . Average Slot Usage (%) 93 | . 99 87 Engine 14 | . 14 14 Treads 20 | . 27 14 Device 8 | . 4 12 Storage 14 | . 14 14 Protection 5 | . 9 1 Energy Gun 9 | . 19 . Ballistic Gun 3 | . 6 . Ballistic Cannon 12 | . 2 21 Impact Weapon 3 | . . 6 Peak Build Rating 12 | 7 10 12 Average Rating 8 | 5 7 10 On Entrance 5 | . 7 9 Naked Turns . | . . . Heaviest Build 21 | 15 21 21 Greatest Support 40 | 40 40 40 Greatest Overweight (x) 6 | . . 6 Average Overweight (x) . | . . . Largest Inventory Capacity 8 | 8 8 8 Average Capacity 7 | 7 8 8 Most Carried 8 | 3 8 8 Average Carried 6 | 1 6 7 Final Capacity 8 | 8 8 8 Final Carried 6 | 2 6 6 Class Distribution -------------------- 100% | Mutant Dominant Class ---------------- Mutant | -10/Materials Mutant | -10/Subcaves Resources | -11 -10 -10 ----------- Run | Yrd Mat Sub Matter Collected 830 | 273 172 385 Remotely . | . . . Salvage Created 497 | 23 354 120 Parts 57 | 3 46 8 Haulers Intercepted . | . . . Recyclers Shooed . | . . . Parts Field Recycled . | . . . Retrieved Matter . | . . . Parts Self-Destructed 10 | . . 10 Prevented . | . . . Kills | -11 -10 -10 ------- Run | Yrd Mat Sub Combat Hostiles Destroyed 12 | . 8 4 Melee 1 | . . 1 Guns 8 | . 8 . Cannons 2 | . . 2 Classes Destroyed 9 | 1 5 3 Builder 2 | . 2 . Tunneler 3 | 1 2 . Mechanic 1 | . 1 . Turret 2 | . . 2 Watcher 1 | . 1 . Swarmer 5 | . 5 . Grunt 3 | . 3 . Artisan 1 | . . 1 Subdweller 4 | . . 4 Best Kill Streak 2 | 1 2 2 Combat Bots Only 2 | . 2 1 Max Kills in Single Turn 1 | 1 1 1 Gunslinging . | . . . Exploded . | . . . Melee 1 | . . 1 Uniques/NPCs Destroyed . | . . . Combat | -11 -10 -10 -------- Run | Yrd Mat Sub Hostile Shots Fired 110 | . 33 77 Missed 35 | . 10 25 Damage Taken 1253 | . 211 1042 Core 255 | . 41 214 Absorbed by Shields . | . . . Regen/Repaired (Parts) 51 | . 51 . Core Remaining (%) 100 | 100 . . Volleys Fired 65 | 1 33 31 Largest 2 | 1 2 2 Hottest 85 | 20 85 78 Shots Fired 122 | 1 64 57 Gun 57 | 1 56 . Cannon 65 | . 8 57 Launcher . | . . . Special . | . . . Kinetic 102 | 1 44 57 Thermal 6 | . 6 . Explosive . | . . . Electromagnetic 14 | . 14 . Robot Hit Streak 8 | 1 7 8 Robot Miss Streak 5 | . 5 3 Penetration Max . | . . . Secondary Targets . | . . . Shots Hit Robots 75 | 1 26 48 Core Hits 27 | 1 18 8 Critical Kills . | . . . Critical Parts Destroyed 2 | . . 2 Critical Strikes 4 | . . 4 Blast 2 | . . 2 Smash 2 | . . 2 Melee Attacks 59 | . . 59 Impact 59 | . . 59 Slashing . | . . . Piercing . | . . . Sneak Attacks 1 | . . 1 Combat Hostiles . | . . . Follow-up Attacks . | . . . Damage Inflicted 1517 | 13 359 1145 Guns 372 | 13 359 . Cannons 643 | . . 643 Explosions . | . . . Melee 502 | . . 502 Ramming . | . . . Kinetic 864 | 13 208 643 Thermal 60 | . 60 . Explosive . | . . . Electromagnetic 91 | . 91 . Impact 502 | . . 502 Slashing . | . . . Piercing . | . . . Highest Corruption . | . . . Average Corruption . | . . . Corruption Purged . | . . . Corruption Blocked . | . . . Overload Shots . | . . . Overflow Damage 192 | . . 192 Projectiles 23 | . . 23 Explosions . | . . . Melee 169 | . . 169 Knockbacks 11 | . . 11 Impact 2 | . . 2 Kinetic 9 | . . 9 Secondary . | . . . Self-Inflicted Damage . | . . . Shots . | . . . Rammed . | . . . Targets Rammed . | . . . Kicked . | . . . Crushed . | . . . Highest Temperature 272 | . 108 272 Average Temperature 43 | . 33 109 Received Heat Transfer 516 | . 57 459 Siege Activations . | . . . Robots Corrupted 2 | . . 2 Combat Hostiles 1 | . . 1 Parts Fried . | . . . Impact Corruptions 6 | . . 6 Robots Melted . | . . . Combat Hostiles . | . . . Parts Melted . | . . . Heat Transferred 148 | . 148 . Parts Sabotaged . | . . . Parts Stolen . | . . . Parts Stripped . | . . . Power Chain Reactions . | . . . Alert | -11 -10 -10 ------- Run | Yrd Mat Sub Peak Influence 258 | 5 258 . Initial 3 | . 3 . Average 53 | 1 57 . Maximum Alert Level 1 | . 1 . Low Security (%) 93 | 100 92 . Level 1 6 | . 7 . Level 2 . | . . . Level 3 . | . . . Level 4 . | . . . Level 5 . | . . . High Security . | . . . Max Security . | . . . Squads Dispatched . | . . . Investigation . | . . . Extermination . | . . . Reinforcement . | . . . Assault . | . . . Garrison . | . . . Intercept . | . . . Searches Triggered . | . . . Construction Impeded . | . . . Haulers Reinforced . | . . . Active Scanning Responses . | . . . Cargo Convoy Interrupts . | . . . Stealth | -11 -10 -10 --------- Run | Yrd Mat Sub Distress Signals 1 | . 1 . Communications Jammed . | . . . Distress Signals . | . . . Times Spotted 38 | . 20 18 Peak Tracking Total 5 | . 5 3 Tactical Retreats 9 | . 1 8 Traps | -11 -10 -10 ------- Run | Yrd Mat Sub Traps Triggered 2 | . 2 . Indirectly . | . . . Trap Hack Attempts . | . . . Triggered . | . . . Disarmed . | . . . Reprogrammed . | . . . Reused . | . . . Traps Extracted . | . . . Installed . | . . . Triggered . | . . . Machines | -11 -10 -10 ---------- Run | Yrd Mat Sub Machines Disabled 1 | . . 1 Max in Single Turn 1 | . . 1 Machines Repaired . | . . . Machines Dismantled . | . . . Machines Sabotaged . | . . . Overloaded Fab Kills . | . . . Hacking | -11 -10 -10 --------- Run | Yrd Mat Sub Machines Accessed 9 | . 9 . Terminals 7 | . 7 . Fabricators . | . . . Repair Stations 1 | . 1 . Recycling Units 1 | . 1 . Scanalyzers . | . . . Garrison Access . | . . . Total Hacks 32 | . 32 . Successful 18 | . 18 . Failed 14 | . 14 . Catastrophic . | . . . Database Lockouts . | . . . Manual 18 | . 18 . Terminals 28 | . 28 . Fabricators . | . . . Repair Stations 2 | . 2 . Recycling Units 2 | . 2 . Scanalyzers . | . . . Garrison Access . | . . . Terminal Hacks 7 | . 7 . Prototype ID Bank 1 | . 1 . Terminal Index 1 | . 1 . Unreport Threat 1 | . 1 . Locate Traps 2 | . 2 . Zone Layout 2 | . 2 . Fabricator Hacks . | . . . Repair Station Hacks 2 | . 2 . Scan Component 1 | . 1 . Repair 1 | . 1 . Recycling Unit Hacks . | . . . Scanalyzer . | . . . Garrison Access Hacks . | . . . Unauthorized Hacks 9 | . 9 . Terminals 9 | . 9 . Botnet 3 | . 3 . Operators 1 | . 1 . Skim 5 | . 5 . Fabricators . | . . . Repair Stations . | . . . Recycling Units . | . . . Scanalyzers . | . . . Garrison Access . | . . . Data Cores Recovered . | . . . Used . | . . . Hacking Detections 8 | . 8 . Full Trace Events . | . . . Feedback Events . | . . . Feedback Blocked . | . . . Robot Schematics Acquired . | . . . Robots Built . | . . . Authchips . | . . . Time . | . . . Total Robot Build Rating . | . . . Part Schematics Acquired . | . . . Parts Built . | . . . Authchips . | . . . Time . | . . . Total Part Build Rating . | . . . Parts Repaired 1 | . 1 . Time 26 | . 26 . Parts Recycled . | . . . Recycled Matter . | . . . Retrieved Matter . | . . . Retrieved Components . | . . . Parts Scanalyzed . | . . . Part Schematics Acquired . | . . . Parts Damaged . | . . . Bothacking | -11 -10 -10 ------------ Run | Yrd Mat Sub Used RIF Installer . | . . . Robots Hacked . | . . . Non-combat . | . . . Combat . | . . . Robot Hacks Applied . | . . . Relay Couplers Released . | . . . Fabnet Peak Effective % . | . . . Robots Rewired . | . . . Allies Hacked . | . . . Hacks Repelled . | . . . Allies | -11 -10 -10 -------- Run | Yrd Mat Sub Total Allies . | . . . Largest Group . | . . . Highest-Rated Group . | . . . Highest-Rated Ally . | . . . Total Orders . | . . . Ally Attacks . | . . . Total Damage . | . . . Kills . | . . . Allies Corrupted . | . . . Allies Melted . | . . . Intel | -11 -10 -10 ------- Run | Yrd Mat Sub Robot Analysis Total . | . . . Derelict Logs Recovered 1 | . . 1 Drone Launches . | . . . Drone Recoveries . | . . . Exploration | -11 -10 -10 ------------- Run | Yrd Mat Sub Turns Passed 2651 | 112 1209 1330 Spaces Moved 1300 | 53 603 644 Core 81 | 4 . 77 Treads 1120 | 49 603 468 Legs . | . . . Wheels 99 | . . 99 Hover . | . . . Flight . | . . . Fastest Speed 50 | 50 160 110 Average Speed 164 | 151 160 169 Slowest Speed 350 | 160 160 350 Overloaded Moves . | . . . Propulsion Burnouts . | . . . Robots Hopped . | . . . Cave-ins Triggered . | . . . Exploration Rate (%) 48 | 4 97 44 Regions Visited 2 Branch Regions 1 Pre-discovered Areas 2 | . 1 1 Known Exits Taken 1 | . 1 . Unknown Exits Taken 1 | 1 . . Scrap Searched 1 | . . 1 Spaces Dug 36 | . . 36 Terrain Destroyed 36 | . . 36 Melee 36 | . . 36 Projectile . | . . . AOE . | . . . Terrain Rammed . | . . . Walls Destroyed . | . . . Machines Disabled . | . . . Actions | -11 -10 -10 --------- Run | Yrd Mat Sub Total 1631 | 81 787 763 Wait 140 | 18 113 9 Move 1298 | 52 602 644 Hop . | . . . Pick Up 17 | 3 10 4 Fast Attach 18 | 6 11 1 Attach 6 | 1 1 4 Detach 2 | . 2 . Swap 12 | . 2 10 Drop 14 | . 13 1 Fire 65 | 1 33 31 Melee 59 | . . 59 Ram . | . . . Kick . | . . . Crush . | . . . Escape Stasis . | . . . Rewire . | . . . Trap . | . . . Miscellaneous . | . . . Route ------- -11/Scrapyard -10/Materials (discovered 5 exits: *Mat x3 / [*Min] / *Sub) -10/Subcaves (discovered 3 exits: *Mat x2 / [*Rec]) History --------- Turn | Location | Event 5 | -11/Scrapyard | Discovered new exit (range 15) 113 | -11/Scrapyard | Entered Materials 304 | -10/Materials | Build established: Mutant 355 | -10/Materials | Discovered new exit (range 14) 562 | -10/Materials | Discovered new exit (range 16) 723 | -10/Materials | Repaired Lgt. Treads 833 | -10/Materials | Discovered new exit (range 15) 1031 | -10/Materials | Learned location of Mines (-10) 1072 | -10/Materials | Identified exit to Materials 1101 | -10/Materials | Learned 4 Subcaves zone layouts 1151 | -10/Materials | Identified exit to Subcaves 1191 | -10/Materials | Learned 2 Mines zone layouts 1322 | -10/Materials | Entered Subcaves 1323 | -10/Subcaves | Identified exit to Materials 1437 | -10/Subcaves | Shifting Twisted Machinery released Sub. Laser 1441 | -10/Subcaves | Shifting Twisted Machinery released Mak. Hammer 1702 | -10/Subcaves | Discovered new exit (range 12) 1819 | -10/Subcaves | Core integrity fell below 50% 1873 | -10/Subcaves | Lost 3 parts (1n1u1w) 2187 | -10/Subcaves | Ambushed by Subdweller buried in earth 2458 | -10/Subcaves | Ambushed by angry Subdweller bent on revenge 2461 | -10/Subcaves | Core integrity fell below 20% 2652 | -10/Subcaves | Destroyed by PJ-SB8(R) with Subdweller Shrapnel Launcher Last Messages --------------- 02285_ Subatomizers dissect the Corrupted Disposable Heat Sink. 02409_ Sneak attack on A1-CYF(u). 02409_ A1-CYF(u) suffers critical hit (Smash). 02409_ Destroyed Wheel. 02409_ A1-CYF(u) system corrupted by crushing effect. 02409_ A1-CYF(u) knocked back. 02410_ A1-CYF(u) system terminally corrupted. 02410_ A1-CYF(u) cries out in pain. 02458_ 63-2ZQ(R) angrily emerges from the Twisted Machinery. 02458_ 63-2ZQ(R): "SUBHATE!" 02468_ 63-2ZQ(R) destroyed. 02478_ Subatomizers dissect the Sub. Monowheel. 02481_ Acquired Sub. Monowheel. 02498_ Acquired 28 matter. 02501_ Acquired 7 matter. 02509_ Acquired 23 matter. 02647_ Imp. Light Cannon destroyed. Map ----- +----------------------------------------------------+ | # ##### ###& < ### ## ######?# | | ## ## # #### ### # ######? | | ### &### ########## # ### ### #### #### | | ### ###&############## ### #### ## ## ### | | ## # #####?????###### #### ### ### ## ## | | #### ######????????######## ## | | #########????????????####### ## ### | | ??##### ??????????????????#### ### | | ??????????????????????????#####" "#"" ## | | ????????????????????????????###" ### | | ?????????????????????????????##" #### | | ?????????????????????????????## ## ## ##### | | ????????????????????????????### "########## | | ??????????????????########??### " ######## | | ???????????????############?## " | | ???????????????#####;;;# ##### " | | ???????????????##;##; ;; ###### # # | | ???????????????## ;; ####### ###### | | ???????????????## ; ##?### # ###### | | ???????????????## & ! ;####### ## ##???? | | ??????????????### ;###### ## ###???? | | ?????????????#### ;#### #######???? | | ?????????????### #;; ; # #####????? | | ?????????????## #### ## ##?????? | | ?????????????## ###;; ### ???? | | ?????????????### ####; @ ;# #### ? | | #######??????########; ;# #### ## ? | | ############??#####"" ; ;; ##?? ###? | | ##"""#######?????##" ;;; ;# ##??? ###?? | | ### #### #########" ### # ##??? ###?? | | ## #### ########## ### #"" ####???? ######??? | | ## ### # # "#"# ###;#### R ##"#####????#######??? | | ## ##"##### " ##### ######??????###??????? | | ###"### ##""""" " ##### #####?????????????????? | | # # ######"##" "" ##### ###???????????????????? | | "## ############ ? R #????????????????????? | | ### # ########## "" ?????????????????????? | | ### ## ## ##?????## """#????????????????????? | | ##"##"### ###??????? ""##????????????????????? | | ########"#"##???????? ""##????????????????????? | | #############???????? "???????????????????????? | | ??????#######???????? ???????????????????????? | | ?????????????????????? ???????????????????????? | | ?????????????????????? ""??????????????????????? | | ????????????????????????"##??????????????????????? | | ????????????????????????###??????????????????????? | | ????????????????????????###??????????????????????? | | ?????????????????????????????????????????????????? | | ?????????????????????????????????????????????##### | | ?????????????????????????????????????????????##### | +----------------------------------------------------+ Best States ------------- Heat Dissipation 25 Energy Generation 10 Energy Capacity 250 Matter Stores 300 Matter Capacity 300 Sight Range 16 Terrain Scan Density 10 Armor Coverage 150 Evasion (%) 40 Recoil Reduction 2 Item Schematics ----------------- None Robot Schematics ------------------ None Fabricated ------------ Nothing Alien Tech Used ----------------- None Achievements -------------- None Challenges ------------ None Game ------ Seed HeartHeavyBasin Manual? 0 Play Time 00:16:10 Cumulative 333.9 hours Start 2024.09.06 @ 22:10:44 End 2024.09.06 @ 22:26:11 Sessions 1 Manual Loads 0 Difficulty Rogue Special Mode None Game No. 340 Rogue 335 Adventurer 5 Explorer 0 Win Type - Total 5 Types 4/0/0/1/0/0/0/0/0 Lore% 76 Gallery% 82 Achievement% 67 Wizard Run 0 Options --------- Layout 1 ASCII 0 Keyboard 0 Movement Arrows Keybinds 0 Fullscreen 1 Font 24/Terminus Map View 50x35 Zoom Use 0% Tactical HUD 1 Map Filters NONE Filters NONE Steam 1 RUN: 083fb6f7-5b20-429c-bd58-18bee25bd099